fUST/lending_fUST_20250724
["ID","MTS","AMOUNT","RATE_DAILY","PERIOD"]
[374420939,1753296647099,-460.0,0.00022189,2]
[374420941,1753296647108,-151.0,0.0002219,7]
[374420943,1753296647118,-151.0,0.0002219,7]
[374420957,1753296647234,-507.03,0.0002219,2]
[374420959,1753296647244,-151.0,0.00022191,7]
[374420961,1753296647253,-260.441878,0.00022191,7]
[374420963,1753296647262,-260.441878,0.00022191,7]
[374420965,1753296647271,-170.347997,0.00022191,7]
[374420967,1753296647280,-170.347997,0.00022191,7]
[374420969,1753296647290,-1454.54,0.00022191,2]
[374420971,1753296647301,-460.0,0.00022191,2]
[374420972,1753296647310,-496.01,0.00022191,2]
[374420974,1753296647319,-151.0,0.00022191,7]
[374420976,1753296647329,-159.740528,0.00022191,7]
[374420978,1753296647337,-159.740528,0.00022191,7]
[374420980,1753296647346,-766.13,0.00022191,2]
[374420982,1753296647355,-210.286578,0.00022191,7]
[374420984,1753296647364,-210.286578,0.00022191,7]
[374420986,1753296647373,-617.13,0.00022191,2]
[374420988,1753296647382,-665.05,0.00022191,2]
[374420990,1753296647392,-180.0,0.00022192,7]
[374420992,1753296647401,-622.0,0.00022192,2]
[374420994,1753296647410,-151.0,0.00022192,2]
[374420996,1753296647420,-500.0,0.00022192,2]
[374420998,1753296647429,-151.0,0.00022192,7]
[374421000,1753296647438,-151.0,0.00022192,7]
[374421002,1753296647448,-151.0,0.00022192,7]
[374421004,1753296647457,-173.806077,0.00022228,3]
[374421006,1753296647466,-1926.42,0.00022233,2]
[374421008,1753296647476,-879.04,0.00022234,2]
[374421010,1753296647485,-460.56,0.00022234,2]
[374421012,1753296647494,-529.39,0.00022234,2]
[374421014,1753296647504,-460.0,0.00022234,2]
[374421016,1753296647514,-173.806077,0.00022244,3]
[374421018,1753296647523,-151.0,0.00022252,7]
[374421020,1753296647533,-151.0,0.00022252,7]
[374421022,1753296647543,-151.0,0.00022252,7]
[374421024,1753296647553,-151.0,0.00022252,7]
[374421026,1753296647562,-151.0,0.00022252,7]
[374421028,1753296647572,-151.0,0.00022252,7]
[374421030,1753296647582,-151.0,0.00022252,7]
[374421032,1753296647591,-151.0,0.00022252,7]
[374421034,1753296647601,-250.500295,0.00022252,7]
[374421036,1753296647615,-250.500295,0.00022252,7]
[374421038,1753296647624,-151.0,0.00022252,2]
[374421040,1753296647633,-173.806077,0.0002226,3]
[374421042,1753296647643,-173.806077,0.00022276,3]
[374421044,1753296647652,-156.366059,0.00022292,3]
[374421046,1753296647661,-173.806077,0.00022292,3]
[374421048,1753296647671,-160.0,0.000223,3]
[374421050,1753296647680,-12622.36869388,0.000223,3]
[374421052,1753296647689,-205.0,0.0002233,2]
[374421054,1753296647699,-360.0,0.00022335,2]
[374421056,1753296647710,-173.806077,0.00022338,7]
[374421058,1753296647719,-173.806077,0.00022344,6]
[374421060,1753296647728,-207.262477,0.00022352,7]
[374421062,1753296647738,-151.0,0.00022352,7]
[374421064,1753296647747,-151.0,0.00022352,7]
[374421066,1753296647759,-151.0,0.00022352,7]
[374421068,1753296647769,-310.104771,0.00022352,7]
[374421070,1753296647779,-310.104771,0.00022352,7]
[374421072,1753296647789,-336.337258,0.00022352,7]
[374421074,1753296647799,-336.337258,0.00022352,7]
[374421076,1753296647810,-714.955063,0.00022352,7]
[374421078,1753296647819,-714.955063,0.00022352,7]
[374421080,1753296647828,-3858.88479,0.00022352,7]
[374421082,1753296647839,-3858.88479,0.00022352,7]
[374421084,1753296647849,-1248.886503,0.00022352,7]
[374421086,1753296647863,-1248.886503,0.00022352,7]
[374421088,1753296647872,-954.453684,0.00022352,7]
[374421090,1753296647881,-954.453684,0.00022352,7]
[374421092,1753296647890,-151.0,0.00022352,7]
[374421094,1753296647900,-626.984599,0.00022352,7]
[374421096,1753296647909,-626.984599,0.00022352,7]
[374421098,1753296647918,-199.568237,0.00022352,7]
[374421100,1753296647928,-199.568237,0.00022352,7]
[374421102,1753296647937,-151.0,0.00022352,7]
[374421104,1753296647946,-276.372292,0.00022352,7]
[374421106,1753296647956,-357.74,0.00022379,3]
[374421108,1753296647965,-800.1907948,0.00022388,2]
[374421110,1753296647974,-151.0,0.000224,6]
[374421112,1753296647983,-715.48,0.00022455,3]
[374421114,1753296647993,-173.806077,0.00022459,6]
[374421116,1753296648002,-151.0,0.00022462,7]
[374421118,1753296648011,-151.0,0.00022462,7]
[374421120,1753296648020,-460.0,0.00022463,2]
[374421122,1753296648030,-740.28,0.00022463,2]
[374421124,1753296648039,-460.0,0.00022463,2]
[374421126,1753296648048,-460.0,0.00022463,2]
[374421128,1753296648058,-151.0,0.00022464,7]
[374421130,1753296648067,-166.910665,0.00022464,7]
[374421132,1753296648077,-507.03,0.00022464,2]
[374421134,1753296648087,-151.0,0.00022465,7]
[374421136,1753296648096,-151.0,0.00022465,7]
[374421138,1753296648107,-176.579178,0.00022465,7]
[374421140,1753296648117,-440.372144,0.00022465,7]
[374421142,1753296648127,-151.0,0.00022465,7]
[374421144,1753296648137,-151.611884,0.00022465,7]
[374421146,1753296648146,-151.0,0.00022465,7]
[374421148,1753296648155,-392.836313,0.00022465,7]
[374421150,1753296648165,-392.836313,0.00022465,7]
[374421152,1753296648175,-151.0,0.00022465,7]
[374421154,1753296648184,-262.593598,0.00022465,7]
[374421156,1753296648194,-151.0,0.00022465,7]
[374421158,1753296648204,-151.0,0.00022465,7]
[374421160,1753296648214,-151.0,0.00022465,7]
[374421162,1753296648223,-151.0,0.00022465,7]
[374421164,1753296648233,-521.933324,0.00022465,7]
[374421166,1753296648243,-521.933324,0.00022465,7]
[374421168,1753296648252,-459.749028,0.00022465,7]
[374421170,1753296648261,-459.749028,0.00022465,7]
[374421172,1753296648271,-940.517846,0.00022465,7]
[374421174,1753296648281,-940.517846,0.00022465,7]
[374421176,1753296648291,-1454.54,0.00022465,2]
[374421178,1753296648300,-460.0,0.00022465,2]
[374421180,1753296648312,-496.01,0.00022465,2]
[374421182,1753296648321,-151.0,0.00022465,7]
[374421184,1753296648330,-159.740528,0.00022465,7]
[374421186,1753296648340,-159.740536,0.00022465,7]
[374421188,1753296648349,-766.13,0.00022465,2]
[374421190,1753296648358,-210.286578,0.00022465,7]
[374421192,1753296648367,-2236.08,0.00022465,2]
[374421194,1753296648377,-210.286576,0.00022465,7]
[374421196,1753296648386,-617.13,0.00022465,2]
[374421198,1753296648395,-665.05,0.00022465,2]
[374421200,1753296648404,-622.0,0.00022466,2]
[374421202,1753296648413,-151.0,0.00022466,2]
[374421204,1753296648423,-500.0,0.00022466,2]
[374421206,1753296648432,-500.0,0.00022473,2]
[374421208,1753296648441,-500.0,0.00022473,2]
[374421210,1753296648451,-500.0,0.00022473,2]
[374421212,1753296648460,-500.0,0.00022473,2]
[374421214,1753296648469,-500.0,0.00022473,2]
[374421216,1753296648478,-500.0,0.00022473,2]
[374421218,1753296648487,-500.0,0.00022473,2]
[374421219,1753296648496,-500.0,0.00022473,2]
[374421221,1753296648505,-500.0,0.00022473,2]
[374421223,1753296648515,-500.0,0.00022473,2]
[374421225,1753296648524,-500.0,0.00022473,2]
[374421227,1753296648534,-500.0,0.00022473,2]
[374421229,1753296648543,-500.0,0.00022473,2]
[374421231,1753296648553,-500.0,0.00022473,2]
[374421233,1753296648562,-386.60069791,0.00022473,2]
[374421236,1753296648571,-500.0,0.00022473,2]
[374421237,1753296648580,-500.0,0.00022473,2]
[374421239,1753296648589,-151.0,0.00022473,7]
[374421241,1753296648599,-151.0,0.00022473,7]
[374421243,1753296648608,-151.0,0.00022473,7]
[374421245,1753296648618,-151.0,0.00022473,7]
[374421247,1753296648631,-238.714801,0.00022473,7]
[374421249,1753296648640,-238.714801,0.00022473,7]
[374421251,1753296648650,-151.576342,0.00022473,7]
[374421253,1753296648660,-260.441878,0.00022473,7]
[374421255,1753296648669,-260.441878,0.00022473,7]
[374421258,1753296648679,-170.347997,0.00022473,7]
[374421259,1753296648688,-170.347997,0.00022473,7]
[374421261,1753296648697,-954.453684,0.00022473,7]
[374421263,1753296648707,-954.453684,0.00022473,7]
[374421265,1753296648717,-199.568237,0.00022473,7]
[374421267,1753296648726,-199.568237,0.00022473,7]
[374421269,1753296648736,-151.0,0.0002249,7]
[374421272,1753296648746,-207.262477,0.0002249,7]
[374421274,1753296648756,-162.626179,0.0002249,7]
[374421276,1753296648769,-151.0,0.0002249,7]
[374421278,1753296648778,-151.0,0.0002249,7]
[374421280,1753296648788,-151.0,0.0002249,7]
[374421282,1753296648797,-151.0,0.0002249,7]
[374421284,1753296648807,-151.0,0.0002249,7]
[374421286,1753296648816,-151.0,0.0002249,7]
[374421288,1753296648826,-180.058266,0.0002249,7]
[374421290,1753296648837,-151.0,0.0002249,7]
[374421292,1753296648851,-151.0,0.0002249,7]
[374421294,1753296648861,-392.836313,0.0002249,7]
[374421295,1753296648870,-231.36276,0.0002249,7]
[374421297,1753296648879,-392.836313,0.0002249,7]
[374421299,1753296648889,-151.0,0.0002249,7]
[374421301,1753296648898,-151.0,0.0002249,7]
[374421303,1753296648907,-151.0,0.0002249,7]
[374421305,1753296648917,-310.104771,0.0002249,7]
[374421307,1753296648928,-310.104771,0.0002249,7]
[374421310,1753296648938,-151.0,0.0002249,7]
[374421312,1753296648947,-151.0,0.0002249,7]
[374421314,1753296648956,-151.0,0.0002249,7]
[374421316,1753296648965,-151.0,0.0002249,7]
[374421317,1753296648974,-260.441878,0.0002249,7]
[374421319,1753296648983,-260.441878,0.0002249,7]
[374421321,1753296648993,-250.500295,0.0002249,7]
[374421323,1753296649002,-250.500295,0.0002249,7]
[374421325,1753296649012,-151.0,0.0002249,7]
[374421327,1753296649022,-336.337258,0.0002249,7]
[374421329,1753296649031,-336.337258,0.0002249,7]
[374421331,1753296649041,-151.0,0.0002249,2]
[374421333,1753296649050,-151.0,0.0002249,7]
[374421335,1753296649059,-139763.81104875,0.0002249,7]
[374421347,1753296649169,-14349.05535488,0.0002249,7]
[374421353,1753296649217,-460.0,0.00019768,2]
[374421355,1753296649228,-182.00579184,0.00021178,2]
[374421357,1753296649237,-58.56189573,0.0002249,7]
[374421358,1753296649249,-15726.14481087,0.0002249,7]
[374421359,1753296649278,-3898.88360008,0.0002249,7]
[374421360,1753296649289,-170.347997,0.0002249,7]
[374421361,1753296649301,-170.347997,0.0002249,7]
[374421362,1753296649311,-714.955063,0.0002249,7]
[374421363,1753296649320,-714.955063,0.0002249,7]
[374421364,1753296649329,-3858.88479,0.0002249,7]
[374421365,1753296649339,-3858.88479,0.0002249,7]
[374421366,1753296649348,-151.0,0.0002249,7]
[374421367,1753296649357,-202.85815651,0.0002249,7]
[374424350,1753296828297,297.00477,0.00013699,2]
[374424352,1753297500336,-160492.87775872,0.00025279,120]
[374424353,1753297500361,-1062.88330088,0.00025279,120]
[374424516,1753297533184,-166.994897,0.00019178,2]
[374424517,1753297533208,-300.0,0.00019766,2]
[374424518,1753297533231,-460.0,0.00019767,2]
[374424519,1753297533254,-460.0,0.00019767,2]
[374424520,1753297533276,-460.0,0.00019767,2]
[374424521,1753297533298,-334.73816242,0.00019767,2]
[374424522,1753297635100,-300.0,0.00019766,2]
[374424523,1753297635125,-126.08004786,0.00019767,2]
[374424524,1753297635144,-157.16638888,0.00019767,2]
[374424525,1753297640134,-287.77348226,0.00019767,2]
[374424526,1753297698665,-192.18730513,0.00019766,2]
[374424672,1753297838367,-666.0,0.00019178,2]
[374424673,1753297838376,-300.0,0.00019766,2]
[374424674,1753297838386,-300.0,0.00019766,2]
[374424675,1753297838396,-460.0,0.00019767,2]
[374424676,1753297838405,-460.0,0.00019767,2]
[374424677,1753297838415,-460.0,0.00019767,2]
[374424678,1753297838424,-460.0,0.00019767,2]
[374424679,1753297838434,-460.0,0.00019767,2]
[374424680,1753297838454,-460.0,0.00019767,2]
[374424681,1753297838469,-460.0,0.00019767,2]
[374424682,1753297838478,-460.0,0.00019767,2]
[374424683,1753297838487,-1883.57,0.00019767,2]
[374424684,1753297838497,-460.0,0.00019768,2]
[374424685,1753297838506,-668.27,0.00019768,2]
[374424686,1753297838515,-182.0,0.00019781,3]
[374424687,1753297838524,-179.78425889,0.00019966,2]
[374424688,1753297838534,-500.0,0.00019973,2]
[374424689,1753297838544,-500.0,0.00019973,2]
[374424690,1753297838553,-624.01322793,0.00019973,2]
[374424691,1753297838562,-500.0,0.00019973,2]
[374424692,1753297838572,-500.0,0.00019973,2]
[374424693,1753297838581,-125.57168977,0.00019973,2]
[374424694,1753297838592,-374.42831023,0.00019973,2]
[374424695,1753297838602,-500.0,0.00019973,2]
[374424696,1753297838611,-500.0,0.00019973,2]
[374424697,1753297838620,-151.0,0.00019986,2]
[374424698,1753297838630,-3801.642,0.00019986,2]
[374424699,1753297838639,-151.0,0.00019986,2]
[374424700,1753297838648,-151.0,0.00019986,2]
[374424701,1753297838658,-151.0,0.00019986,2]
[374424702,1753297838667,-151.0,0.00019986,2]
[374424703,1753297838676,-8326.83511787,0.00019986,2]
[374424704,1753297838686,-151.0,0.00019986,2]
[374424705,1753297838695,-151.0,0.00019986,2]
[374424706,1753297838704,-151.0,0.00019986,2]
[374424707,1753297838713,-151.0,0.00019986,2]
[374424708,1753297838723,-151.0,0.00019986,2]
[374424709,1753297838731,-151.0,0.00019986,2]
[374424710,1753297838741,-151.0,0.00019986,2]
[374424711,1753297838750,-151.0,0.00019986,2]
[374424712,1753297838759,-215.0738,0.00019986,2]
[374424713,1753297838769,-151.0,0.00019986,2]
[374424714,1753297838778,-151.0,0.00019986,2]
[374424715,1753297838788,-151.0,0.00019986,2]
[374424716,1753297838797,-151.0,0.00019986,2]
[374424717,1753297838806,-151.0,0.00019986,2]
[374424718,1753297838816,-151.0,0.00019986,2]
[374424719,1753297838826,-151.0,0.00019986,2]
[374424720,1753297838835,-169.54312357,0.00019986,2]
[374424721,1753297838844,-151.0,0.00019986,2]
[374424722,1753297838854,-151.0,0.00019986,2]
[374424723,1753297838864,-151.0,0.00019986,2]
[374424724,1753297838873,-151.0,0.00019986,2]
[374424725,1753297838882,-151.0,0.00019986,2]
[374424726,1753297838891,-151.0,0.00019986,2]
[374424727,1753297838901,-151.0,0.00019986,2]
[374424728,1753297838910,-151.0,0.00019986,2]
[374424729,1753297838920,-151.0,0.00019986,2]
[374424730,1753297838929,-151.0,0.00019986,2]
[374424731,1753297838939,-151.0,0.00019986,2]
[374424732,1753297838950,-151.0,0.00019986,2]
[374424733,1753297838960,-151.0,0.00019986,2]
[374424734,1753297838969,-151.0,0.00019986,2]
[374424735,1753297838978,-151.0,0.00019986,2]
[374424736,1753297838987,-151.0,0.00019986,2]
[374424737,1753297838996,-151.0,0.00019986,2]
[374424738,1753297839006,-500.0,0.00019995,2]
[374424739,1753297839015,-500.0,0.00019995,2]
[374424740,1753297839024,-500.0,0.00019995,2]
[374424741,1753297839033,-500.0,0.00019995,2]
[374424742,1753297839043,-500.0,0.00019995,2]
[374424743,1753297839054,-500.0,0.00019995,2]
[374424744,1753297839064,-500.0,0.00019995,2]
[374424745,1753297839074,-500.0,0.00019995,2]
[374424746,1753297839083,-447.11602545,0.00019995,2]
[374424747,1753297839092,-500.0,0.00019995,2]
[374424748,1753297839101,-500.0,0.00019995,2]
[374424749,1753297839111,-500.0,0.00019995,2]
[374424750,1753297839121,-592.6520529,0.00019995,2]
[374424751,1753297839131,-500.0,0.00019995,2]
[374424752,1753297839140,-500.0,0.00019995,2]
[374424753,1753297839150,-500.0,0.00019995,2]
[374424754,1753297839159,-500.0,0.00019995,2]
[374424755,1753297839169,-500.0,0.00019995,2]
[374424756,1753297839178,-500.0,0.00019995,2]
[374424757,1753297839187,-277.02074133,0.00019995,2]
[374424758,1753297839196,-500.0,0.00019995,2]
[374424759,1753297839205,-500.0,0.00019995,2]
[374424760,1753297839215,-500.0,0.00019995,2]
[374424761,1753297839227,-500.0,0.00019995,2]
[374424762,1753297839237,-500.0,0.00019995,2]
[374424763,1753297839246,-500.0,0.00019995,2]
[374424764,1753297839255,-500.0,0.00019995,2]
[374424765,1753297839265,-500.0,0.00019995,2]
[374424766,1753297839275,-500.0,0.00019995,2]
[374424767,1753297839284,-500.0,0.00019995,2]
[374424768,1753297839294,-500.0,0.00019995,2]
[374424769,1753297839305,-500.0,0.00019995,2]
[374424770,1753297839316,-500.0,0.00019995,2]
[374424771,1753297839325,-284.64926623,0.00019995,2]
[374424772,1753297839334,-500.0,0.00019995,2]
[374424773,1753297839343,-500.0,0.00019995,2]
[374424774,1753297839353,-500.0,0.00019995,2]
[374424775,1753297839362,-500.0,0.00019995,2]
[374424776,1753297839372,-500.0,0.00019995,2]
[374424777,1753297839383,-614.39920252,0.00019995,2]
[374424778,1753297839392,-628.02080697,0.00019995,2]
[374424779,1753297839402,-500.0,0.00019995,2]
[374424780,1753297839412,-500.0,0.00019995,2]
[374424781,1753297839421,-500.0,0.00019995,2]
[374424782,1753297839430,-500.0,0.00019995,2]
[374424783,1753297839441,-500.0,0.00019995,2]
[374424784,1753297839450,-500.0,0.00019995,2]
[374424785,1753297839461,-500.0,0.00019995,2]
[374424786,1753297839471,-500.0,0.00019995,2]
[374424787,1753297839480,-500.0,0.00019995,2]
[374424788,1753297839489,-500.0,0.00019995,2]
[374424789,1753297839499,-500.0,0.00019995,2]
[374424790,1753297839508,-255.7395295,0.00019995,2]
[374424791,1753297839517,-500.0,0.00019995,2]
[374424792,1753297839526,-500.0,0.00019995,2]
[374424793,1753297839536,-460.0,0.00019995,2]
[374424794,1753297839546,-500.0,0.00019995,2]
[374424795,1753297839555,-600.0,0.00019995,2]
[374424796,1753297839565,-527.99119755,0.00019995,2]
[374424797,1753297839575,-500.0,0.00019995,2]
[374424798,1753297839585,-527.99119755,0.00019995,2]
[374424799,1753297839595,-500.0,0.00019995,2]
[374424800,1753297839605,-527.99119755,0.00019995,2]
[374424801,1753297839615,-527.99119755,0.00019995,2]
[374424802,1753297839624,-500.0,0.00019995,2]
[374424803,1753297839634,-527.99119755,0.00019995,2]
[374424804,1753297839644,-527.99119755,0.00019995,2]
[374424805,1753297839654,-500.0,0.00019995,2]
[374424806,1753297839663,-527.99119755,0.00019995,2]
[374424807,1753297839673,-500.0,0.00019995,2]
[374424808,1753297839683,-527.99119755,0.00019995,2]
[374424809,1753297839692,-527.99119755,0.00019995,2]
[374424810,1753297839702,-527.99119755,0.00019995,2]
[374424811,1753297839711,-527.99119755,0.00019995,2]
[374424812,1753297839720,-527.99119755,0.00019995,2]
[374424813,1753297839730,-527.99119755,0.00019995,2]
[374424814,1753297839739,-527.99119755,0.00019995,2]
[374424815,1753297839748,-527.99119755,0.00019995,2]
[374424816,1753297839757,-527.99119755,0.00019995,2]
[374424817,1753297839767,-527.99119755,0.00019995,2]
[374424818,1753297839778,-527.99119755,0.00019995,2]
[374424819,1753297839789,-527.99119755,0.00019995,2]
[374424820,1753297839798,-527.99119755,0.00019995,2]
[374424821,1753297839807,-527.99119755,0.00019995,2]
[374424822,1753297839816,-527.99119755,0.00019995,2]
[374424823,1753297839826,-527.99119755,0.00019995,2]
[374424824,1753297839835,-527.99119755,0.00019995,2]
[374424825,1753297839845,-527.99119755,0.00019995,2]
[374424826,1753297839854,-527.99119755,0.00019995,2]
[374424827,1753297839864,-527.99119755,0.00019995,2]
[374424828,1753297839873,-527.99119755,0.00019995,2]
[374424829,1753297839883,-527.99119755,0.00019995,2]
[374424830,1753297839895,-527.99119755,0.00019995,2]
[374424831,1753297839906,-527.99119755,0.00019995,2]
[374424832,1753297839915,-527.99119755,0.00019995,2]
[374424833,1753297839925,-527.99119755,0.00019995,2]
[374424834,1753297839935,-527.99119755,0.00019995,2]
[374424835,1753297839948,-527.99119755,0.00019995,2]
[374424836,1753297839958,-527.99119755,0.00019995,2]
[374424837,1753297839970,-527.99119755,0.00019995,2]
[374424838,1753297839980,-527.99119755,0.00019995,2]
[374424839,1753297839989,-527.99119755,0.00019995,2]
[374424840,1753297839999,-527.99119755,0.00019995,2]
[374424841,1753297840009,-527.99119755,0.00019995,2]
[374424842,1753297840019,-527.99119755,0.00019995,2]
[374424843,1753297840028,-527.99119755,0.00019995,2]
[374424844,1753297840038,-527.99119755,0.00019995,2]
[374424845,1753297840047,-527.99119755,0.00019995,2]
[374424847,1753297840057,-527.99119755,0.00019995,2]
[374424848,1753297840066,-527.99119755,0.00019995,2]
[374424849,1753297840076,-527.99119755,0.00019995,2]
[374424859,1753297840239,-527.99119755,0.00019995,2]
[374424860,1753297840249,-527.99119755,0.00019995,2]
[374424861,1753297840259,-527.99119755,0.00019995,2]
[374424862,1753297840268,-460.0,0.00019995,2]
[374424863,1753297840278,-460.0,0.00019995,2]
[374424864,1753297840287,-516.51312802,0.00019995,2]
[374424865,1753297840296,-516.51312802,0.00019995,2]
[374424866,1753297840306,-516.51312802,0.00019995,2]
[374424867,1753297840316,-516.51312802,0.00019995,2]
[374424868,1753297840326,-516.51312802,0.00019995,2]
[374424869,1753297840335,-516.51312802,0.00019995,2]
[374424870,1753297840346,-516.51312802,0.00019995,2]
[374424871,1753297840355,-516.51312802,0.00019995,2]
[374424872,1753297840367,-516.51312802,0.00019995,2]
[374424873,1753297840377,-516.51312802,0.00019995,2]
[374424874,1753297840388,-516.51312802,0.00019995,2]
[374424875,1753297840398,-516.51312802,0.00019995,2]
[374424876,1753297840407,-516.51312802,0.00019995,2]
[374424877,1753297840417,-516.51312802,0.00019995,2]
[374424878,1753297840426,-516.51312802,0.00019995,2]
[374424879,1753297840435,-516.51312802,0.00019995,2]
[374424880,1753297840444,-516.51312802,0.00019995,2]
[374424881,1753297840454,-516.51312802,0.00019995,2]
[374424882,1753297840463,-516.51312802,0.00019995,2]
[374424883,1753297840472,-516.51312802,0.00019995,2]
[374424884,1753297840482,-516.51312802,0.00019995,2]
[374424885,1753297840492,-516.51312802,0.00019995,2]
[374424886,1753297840501,-516.51312802,0.00019995,2]
[374424887,1753297840511,-460.0,0.00019995,2]
[374424888,1753297840521,-906.63,0.00019995,2]
[374424889,1753297840531,-460.0,0.00019995,2]
[374424890,1753297840540,-460.0,0.00019995,2]
[374424891,1753297840549,-460.0,0.00019995,2]
[374424892,1753297840559,-460.0,0.00019995,2]
[374424894,1753297840569,-460.0,0.00019995,2]
[374424896,1753297840578,-460.0,0.00019995,2]
[374424897,1753297840587,-465.47,0.00019996,2]
[374424898,1753297840597,-460.0,0.00019996,2]
[374424899,1753297840606,-460.0,0.00019996,2]
[374424900,1753297840615,-817.63,0.00019996,2]
[374424902,1753297840625,-460.0,0.00019996,2]
[374424904,1753297840634,-460.0,0.00019996,2]
[374424906,1753297840643,-460.0,0.00019996,2]
[374424908,1753297840653,-711.46,0.00019996,2]
[374424910,1753297840663,-460.0,0.00019996,2]
[374424911,1753297840673,-460.0,0.00019996,2]
[374424912,1753297840684,-460.0,0.00019996,2]
[374424913,1753297840694,-460.0,0.00019996,2]
[374424914,1753297840704,-460.0,0.00019996,2]
[374424915,1753297840713,-460.0,0.00019996,2]
[374424916,1753297840722,-460.0,0.00019996,2]
[374424917,1753297840731,-460.0,0.00019996,2]
[374424918,1753297840740,-460.0,0.00019997,2]
[374424919,1753297840750,-460.0,0.00019997,2]
[374424920,1753297840759,-460.0,0.00019997,2]
[374424921,1753297840769,-460.0,0.00019997,2]
[374424922,1753297840778,-357.78735183,0.00019997,2]
[374424963,1753297846647,-151.0,0.00019986,2]
[374424964,1753297846661,-460.0,0.00019995,2]
[374424965,1753297846671,-460.0,0.00019996,2]
[374424966,1753297846680,-102.21264817,0.00019997,2]
[374424967,1753297846690,-460.0,0.00019997,2]
[374424968,1753297846699,-460.0,0.00019997,2]
[374424969,1753297846709,-564.6643063,0.00019997,2]
[374424970,1753297846717,-460.0,0.00019997,2]
[374424971,1753297846725,-460.0,0.00019997,2]
[374424972,1753297846734,-460.0,0.00019997,2]
[374424973,1753297846743,-460.0,0.00019997,2]
[374424974,1753297846752,-182.90484529,0.00019997,2]
[374424975,1753297846761,-460.0,0.00019997,2]
[374424976,1753297846771,-460.0,0.00019997,2]
[374424977,1753297846780,-555.44254703,0.00019997,2]
[374424978,1753297846790,-460.0,0.00019997,2]
[374424979,1753297846799,-460.0,0.00019997,2]
[374424980,1753297846809,-534.64648995,0.00019997,2]
[374424981,1753297846818,-460.0,0.00019997,2]
[374424982,1753297846828,-460.0,0.00019997,2]
[374424983,1753297846837,-460.0,0.00019997,2]
[374424984,1753297846847,-460.0,0.00019997,2]
[374424985,1753297846856,-460.0,0.00019997,2]
[374424986,1753297846865,-460.0,0.00019997,2]
[374424987,1753297846875,-460.0,0.00019997,2]
[374424988,1753297846884,-361.78534963,0.00019997,2]
[374424989,1753297846894,-460.0,0.00019997,2]
[374424990,1753297846903,-355.0389995,0.00019997,2]
[374424991,1753297846915,-460.0,0.00019997,2]
[374424992,1753297846927,-460.0,0.00019997,2]
[374424993,1753297846935,-460.0,0.00019997,2]
[374424994,1753297846945,-460.0,0.00019997,2]
[374424995,1753297846954,-460.0,0.00019997,2]
[374424996,1753297846963,-460.0,0.00019997,2]
[374424997,1753297846973,-460.0,0.00019997,2]
[374424998,1753297846983,-460.0,0.00019997,2]
[374424999,1753297846993,-460.0,0.00019997,2]
[374425000,1753297847007,-460.0,0.00019997,2]
[374425001,1753297847016,-478.30509695,0.00019997,2]
[374425002,1753297847026,-789.87,0.00019997,2]
[374425003,1753297847035,-460.0,0.00019997,2]
[374425004,1753297847045,-460.0,0.00019997,2]
[374425005,1753297847054,-460.0,0.00019997,2]
[374425006,1753297847063,-460.0,0.00019997,2]